[Event "Titled Tuesday Blitz August 15 Early 2023"]
[White "Golubev, Mikhail"]
[Black "Novikov, Evgenij"]
[WhiteFideId "14100983"]
[BlackFideId "4125380"]
[WhiteElo "2603"]
[BlackElo "2426"]
[Result "1-0"]
[Round "3"]
[TimeControl "180+1"]
[Date "2023.08.15"]
[WhiteClock "0:00:31"]
[BlackClock "0:00:00"]
[Board "120"]

1. e4 {[%clk 0:03:00]}  c6 {[%clk 0:02:59]} 2. d4 {[%clk 0:02:59]}  d5 {[%clk 0:02:58]} 3. e5 {[%clk 0:02:59]}  Bf5 {[%clk 0:02:51]} 4. h4 {[%clk 0:02:58]}  h6 {[%clk 0:02:43]} 5. g4 {[%clk 0:02:57]}  Bd7 {[%clk 0:02:33]} 6. f4 {[%clk 0:02:46]}  h5 {[%clk 0:02:23]} 7. f5 {[%clk 0:02:33]}  e6 {[%clk 0:02:13]} 8. g5 {[%clk 0:02:32]}  exf5 {[%clk 0:02:03]} 9. g6 {[%clk 0:02:32]}  fxg6 {[%clk 0:01:44]} 10. Nh3 {[%clk 0:02:32]}  Qxh4+ {[%clk 0:01:37]} 11. Nf2 {[%clk 0:02:27]}  Qd8 {[%clk 0:01:29]} 12. Rg1 {[%clk 0:02:26]}  Ne7 {[%clk 0:01:25]} 13. Nd2 {[%clk 0:02:13]}  Na6 {[%clk 0:01:14]} 14. Nf3 {[%clk 0:02:11]}  Nc7 {[%clk 0:01:09]} 15. Nh4 {[%clk 0:02:03]}  Ne6 {[%clk 0:00:56]} 16. Nxg6 {[%clk 0:02:03]}  Nxg6 {[%clk 0:00:56]} 17. Rxg6 {[%clk 0:02:04]}  Qh4 {[%clk 0:00:51]} 18. c3 {[%clk 0:01:45]}  O-O-O {[%clk 0:00:49]} 19. b4 {[%clk 0:01:38]}  Nf4 {[%clk 0:00:36]} 20. Rg1 {[%clk 0:01:13]}  g5 {[%clk 0:00:35]} 21. a4 {[%clk 0:01:08]}  Bh6 {[%clk 0:00:28]} 22. Rh1 {[%clk 0:00:57]}  Qg3 {[%clk 0:00:19]} 23. Ra3 {[%clk 0:00:57]}  g4 {[%clk 0:00:06]} 24. c4 {[%clk 0:00:40]}  Qxa3 {[%clk 0:00:07]} 25. Bxa3 {[%clk 0:00:39]}  dxc4 {[%clk 0:00:06]} 26. Bxc4 {[%clk 0:00:38]}  g3 {[%clk 0:00:05]} 27. Nd3 {[%clk 0:00:32]}  Ng2+ {[%clk 0:00:04]} 28. Ke2 {[%clk 0:00:32]}  f4 {[%clk 0:00:04]} 29. e6 {[%clk 0:00:32]}  Bxe6 {[%clk 0:00:00]} 30. Bxe6+ {[%clk 0:00:31]} 1-0


[Site "https://www.chess.com"]

[Event "Titled Tuesday Blitz August 15 Early 2023"]
[White "Sadykov, Ramil"]
[Black "Todorovic, Bojan"]
[WhiteFideId "24113590"]
[BlackFideId "917087"]
[WhiteElo "2603"]
[BlackElo "2420"]
[Result "0-1"]
[Round "3"]
[TimeControl "180+1"]
[Date "2023.08.15"]
[WhiteClock "0:00:08"]
[BlackClock "0:00:04"]
[Board "121"]

1. d4 {[%clk 0:03:00]}  g6 {[%clk 0:02:59]} 2. e4 {[%clk 0:03:00]}  Bg7 {[%clk 0:02:58]} 3. Nc3 {[%clk 0:03:01]}  d6 {[%clk 0:02:58]} 4. Be3 {[%clk 0:03:01]}  a6 {[%clk 0:02:57]} 5. g4 {[%clk 0:02:53]}  Nd7 {[%clk 0:02:53]} 6. h4 {[%clk 0:02:48]}  b5 {[%clk 0:02:48]} 7. a3 {[%clk 0:02:41]}  Bb7 {[%clk 0:02:46]} 8. Bg2 {[%clk 0:02:41]}  h5 {[%clk 0:02:29]} 9. g5 {[%clk 0:02:35]}  e6 {[%clk 0:02:27]} 10. Nge2 {[%clk 0:02:07]}  Ne7 {[%clk 0:02:26]} 11. Qd2 {[%clk 0:02:04]}  Nb6 {[%clk 0:02:24]} 12. b3 {[%clk 0:02:04]}  O-O {[%clk 0:02:10]} 13. f4 {[%clk 0:01:53]}  d5 {[%clk 0:02:01]} 14. e5 {[%clk 0:01:48]}  Nf5 {[%clk 0:02:00]} 15. Bf2 {[%clk 0:01:48]}  Nd7 {[%clk 0:01:53]} 16. Nd1 {[%clk 0:01:36]}  Qe7 {[%clk 0:01:51]} 17. Nb2 {[%clk 0:01:21]}  c5 {[%clk 0:01:48]} 18. dxc5 {[%clk 0:01:20]}  Nxc5 {[%clk 0:01:48]} 19. Qb4 {[%clk 0:01:11]}  Rfc8 {[%clk 0:01:43]} 20. Nd4 {[%clk 0:01:06]}  a5 {[%clk 0:01:26]} 21. Nxf5 {[%clk 0:00:50]}  exf5 {[%clk 0:01:25]} 22. Qxb5 {[%clk 0:00:37]}  Ba6 {[%clk 0:01:24]} 23. Qb6 {[%clk 0:00:35]}  Ne4 {[%clk 0:01:09]} 24. Bxe4 {[%clk 0:00:30]}  dxe4 {[%clk 0:00:58]} 25. O-O-O {[%clk 0:00:27]}  Qxa3 {[%clk 0:00:55]} 26. Kb1 {[%clk 0:00:23]}  Rcb8 {[%clk 0:00:47]} 27. Bc5 {[%clk 0:00:16]}  Rxb6 {[%clk 0:00:41]} 28. Bxa3 {[%clk 0:00:16]}  Be2 {[%clk 0:00:34]} 29. Rd2 {[%clk 0:00:14]}  Bf3 {[%clk 0:00:34]} 30. Re1 {[%clk 0:00:14]}  a4 {[%clk 0:00:31]} 31. b4 {[%clk 0:00:11]}  Bf8 {[%clk 0:00:30]} 32. c3 {[%clk 0:00:07]}  Rc8 {[%clk 0:00:30]} 33. Re3 {[%clk 0:00:07]}  Rbc6 {[%clk 0:00:29]} 34. Kc2 {[%clk 0:00:04]}  Be7 {[%clk 0:00:18]} 35. Rd4 {[%clk 0:00:02]}  Bd8 {[%clk 0:00:18]} 36. Nxa4 {[%clk 0:00:03]}  Ra6 {[%clk 0:00:16]} 37. Kb3 {[%clk 0:00:03]}  Rca8 {[%clk 0:00:16]} 38. b5 {[%clk 0:00:04]}  Ra5 {[%clk 0:00:15]} 39. Bc5 {[%clk 0:00:03]}  Rxb5+ {[%clk 0:00:14]} 40. Rb4 {[%clk 0:00:04]}  Bd1+ {[%clk 0:00:11]} 41. Kc4 {[%clk 0:00:02]}  Rxb4+ {[%clk 0:00:10]} 42. cxb4 {[%clk 0:00:02]}  Bxa4 {[%clk 0:00:10]} 43. b5 {[%clk 0:00:02]}  Rb8 {[%clk 0:00:09]} 44. b6 {[%clk 0:00:02]}  Bc6 {[%clk 0:00:09]} 45. Ra3 {[%clk 0:00:02]}  Bd7 {[%clk 0:00:06]} 46. Rb3 {[%clk 0:00:01]}  Be6+ {[%clk 0:00:07]} 47. Kc3 {[%clk 0:00:01]}  Bxb3 {[%clk 0:00:07]} 48. Kxb3 {[%clk 0:00:02]}  Bxb6 {[%clk 0:00:07]} 49. Bd6 {[%clk 0:00:03]}  Bc7+ {[%clk 0:00:07]} 50. Kc4 {[%clk 0:00:03]}  Bxd6 {[%clk 0:00:07]} 51. exd6 {[%clk 0:00:04]}  Kf8 {[%clk 0:00:08]} 52. Kd4 {[%clk 0:00:04]}  Ke8 {[%clk 0:00:08]} 53. Ke5 {[%clk 0:00:05]}  e3 {[%clk 0:00:08]} 54. Kf6 {[%clk 0:00:05]}  Rd8 {[%clk 0:00:08]} 55. Kg7 {[%clk 0:00:05]}  Rxd6 {[%clk 0:00:08]} 56. Kh6 {[%clk 0:00:05]}  e2 {[%clk 0:00:08]} 57. Kg7 {[%clk 0:00:06]}  e1=Q {[%clk 0:00:08]} 58. Kg8 {[%clk 0:00:07]}  f6 {[%clk 0:00:06]} 59. Kg7 {[%clk 0:00:06]}  fxg5 {[%clk 0:00:06]} 60. hxg5 {[%clk 0:00:07]}  Qe7+ {[%clk 0:00:05]} 61. Kh6 {[%clk 0:00:07]}  Qf8+ {[%clk 0:00:04]} 62. Kh7 {[%clk 0:00:08]} 0-1


[Site "https://www.chess.com"]

[Event "Titled Tuesday Blitz August 15 Early 2023"]
[White "Llanos, Guillermo"]
[Black "NovoselovRoman"]
[WhiteFideId "100358"]
[WhiteElo "2414"]
[BlackElo "2600"]
[Result "1/2-1/2"]
[Round "3"]
[TimeControl "180+1"]
[Date "2023.08.15"]
[WhiteClock "0:00:59"]
[BlackClock "0:00:40"]
[Board "123"]

1. b3 {[%clk 0:03:00]}  Nf6 {[%clk 0:02:59]} 2. Bb2 {[%clk 0:03:00]}  d5 {[%clk 0:03:00]} 3. Nf3 {[%clk 0:03:00]}  Bf5 {[%clk 0:02:59]} 4. e3 {[%clk 0:02:58]}  e6 {[%clk 0:02:59]} 5. c4 {[%clk 0:02:58]}  Be7 {[%clk 0:02:59]} 6. Nc3 {[%clk 0:02:58]}  O-O {[%clk 0:03:00]} 7. d4 {[%clk 0:02:55]}  Nbd7 {[%clk 0:02:56]} 8. Bd3 {[%clk 0:02:46]}  Bxd3 {[%clk 0:02:53]} 9. Qxd3 {[%clk 0:02:46]}  c5 {[%clk 0:02:53]} 10. cxd5 {[%clk 0:02:44]}  exd5 {[%clk 0:02:52]} 11. O-O {[%clk 0:02:42]}  Rc8 {[%clk 0:02:51]} 12. dxc5 {[%clk 0:02:36]}  Nxc5 {[%clk 0:02:52]} 13. Qe2 {[%clk 0:02:35]}  Nfe4 {[%clk 0:02:47]} 14. Rac1 {[%clk 0:02:30]}  Bf6 {[%clk 0:02:42]} 15. Nb5 {[%clk 0:02:22]}  Bxb2 {[%clk 0:02:40]} 16. Qxb2 {[%clk 0:02:21]}  Qb6 {[%clk 0:02:38]} 17. Qe2 {[%clk 0:02:17]}  Ne6 {[%clk 0:02:27]} 18. Nbd4 {[%clk 0:02:15]}  h6 {[%clk 0:02:19]} 19. Qb2 {[%clk 0:02:12]}  Rc5 {[%clk 0:02:00]} 20. Rxc5 {[%clk 0:02:10]}  N6xc5 {[%clk 0:02:01]} 21. Nf5 {[%clk 0:02:01]}  Ne6 {[%clk 0:01:45]} 22. Ne7+ {[%clk 0:01:57]}  Kh8 {[%clk 0:01:41]} 23. Nxd5 {[%clk 0:01:57]}  Qc5 {[%clk 0:01:29]} 24. Qe5 {[%clk 0:01:34]}  N4g5 {[%clk 0:01:25]} 25. Nxg5 {[%clk 0:01:28]}  hxg5 {[%clk 0:01:26]} 26. Qf5 {[%clk 0:01:22]}  Rd8 {[%clk 0:01:09]} 27. e4 {[%clk 0:01:21]}  Kg8 {[%clk 0:01:04]} 28. Qg4 {[%clk 0:01:09]}  Qc2 {[%clk 0:00:51]} 29. h4 {[%clk 0:01:06]}  gxh4 {[%clk 0:00:44]} 30. Qxh4 {[%clk 0:01:06]}  Qxa2 {[%clk 0:00:40]} 31. Ne7+ {[%clk 0:00:58]}  Kf8 {[%clk 0:00:39]} 32. Nf5 {[%clk 0:00:58]}  Kg8 {[%clk 0:00:40]} 33. Ne7+ {[%clk 0:00:59]}  Kf8 {[%clk 0:00:40]} 34. Nf5 {[%clk 0:00:59]}  Kg8 {[%clk 0:00:40]} 35. Ne7+ {[%clk 0:00:59]} 1/2-1/2


[Site "https://www.chess.com"]

[Event "Titled Tuesday Blitz August 15 Early 2023"]
[White "Li, Eric"]
[Black "Jia, Haoxiang"]
[WhiteFideId "30939941"]
[BlackFideId "8602999"]
[WhiteElo "2410"]
[BlackElo "2594"]
[Result "1-0"]
[Round "3"]
[TimeControl "180+1"]
[Date "2023.08.15"]
[WhiteClock "0:01:09"]
[BlackClock "0:00:03"]
[Board "125"]

1. e4 {[%clk 0:03:00]}  c5 {[%clk 0:03:00]} 2. Nf3 {[%clk 0:03:01]}  d6 {[%clk 0:03:00]} 3. d4 {[%clk 0:03:01]}  cxd4 {[%clk 0:03:01]} 4. Nxd4 {[%clk 0:03:01]}  Nf6 {[%clk 0:03:02]} 5. Nc3 {[%clk 0:03:01]}  g6 {[%clk 0:03:02]} 6. Be3 {[%clk 0:03:01]}  Bg7 {[%clk 0:03:02]} 7. f3 {[%clk 0:03:01]}  O-O {[%clk 0:03:03]} 8. Qd2 {[%clk 0:03:02]}  Nc6 {[%clk 0:03:03]} 9. O-O-O {[%clk 0:03:00]}  d5 {[%clk 0:03:04]} 10. Qe1 {[%clk 0:02:59]}  e5 {[%clk 0:02:57]} 11. Nxc6 {[%clk 0:02:58]}  bxc6 {[%clk 0:02:58]} 12. exd5 {[%clk 0:02:58]}  Nxd5 {[%clk 0:02:58]} 13. Bc4 {[%clk 0:02:57]}  Be6 {[%clk 0:02:51]} 14. Bb3 {[%clk 0:02:57]}  Re8 {[%clk 0:02:16]} 15. h4 {[%clk 0:02:56]}  f5 {[%clk 0:01:35]} 16. h5 {[%clk 0:02:48]}  Bf7 {[%clk 0:01:23]} 17. hxg6 {[%clk 0:02:45]}  hxg6 {[%clk 0:01:23]} 18. g4 {[%clk 0:02:35]}  e4 {[%clk 0:01:10]} 19. gxf5 {[%clk 0:02:23]}  exf3 {[%clk 0:01:10]} 20. fxg6 {[%clk 0:02:22]}  Be6 {[%clk 0:01:01]} 21. Qg3 {[%clk 0:01:37]}  Qf6 {[%clk 0:00:42]} 22. Bxd5 {[%clk 0:01:16]}  Bxd5 {[%clk 0:00:33]} 23. Bd4 {[%clk 0:01:15]}  Qe7 {[%clk 0:00:07]} 24. Rh7 {[%clk 0:01:11]}  f2 {[%clk 0:00:05]} 25. Rxg7+ {[%clk 0:01:08]}  Qxg7 {[%clk 0:00:05]} 26. Bxg7 {[%clk 0:01:09]}  Kxg7 {[%clk 0:00:03]} 27. Qxf2 {[%clk 0:01:09]} 1-0


[Site "https://www.chess.com"]

[Event "Titled Tuesday Blitz August 15 Early 2023"]
[White "dr_tatiana"]
[Black "Deng, Henry"]
[BlackFideId "30965454"]
[WhiteElo "2408"]
[BlackElo "2587"]
[Result "1-0"]
[Round "3"]
[TimeControl "180+1"]
[Date "2023.08.15"]
[WhiteClock "0:00:11"]
[BlackClock "0:00:14"]
[Board "127"]

1. e4 {[%clk 0:03:00]}  c5 {[%clk 0:02:58]} 2. Nc3 {[%clk 0:02:55]}  e6 {[%clk 0:02:57]} 3. g3 {[%clk 0:02:53]}  d5 {[%clk 0:02:56]} 4. exd5 {[%clk 0:02:53]}  exd5 {[%clk 0:02:57]} 5. d4 {[%clk 0:02:52]}  Nf6 {[%clk 0:02:48]} 6. Bg2 {[%clk 0:02:51]}  Nc6 {[%clk 0:02:47]} 7. Nge2 {[%clk 0:02:47]}  cxd4 {[%clk 0:02:47]} 8. Nxd4 {[%clk 0:02:46]}  Bg4 {[%clk 0:02:48]} 9. f3 {[%clk 0:02:29]}  Bd7 {[%clk 0:02:44]} 10. Be3 {[%clk 0:02:27]}  Be7 {[%clk 0:02:37]} 11. Qd2 {[%clk 0:02:26]}  O-O {[%clk 0:02:33]} 12. O-O {[%clk 0:02:14]}  Ne5 {[%clk 0:02:23]} 13. b3 {[%clk 0:02:01]}  Rc8 {[%clk 0:02:17]} 14. Nce2 {[%clk 0:02:00]}  Re8 {[%clk 0:02:10]} 15. Rad1 {[%clk 0:01:54]}  a6 {[%clk 0:02:06]} 16. Nf4 {[%clk 0:01:50]}  Qc7 {[%clk 0:01:58]} 17. Rfe1 {[%clk 0:01:46]}  Bf8 {[%clk 0:01:43]} 18. Bf2 {[%clk 0:01:39]}  h6 {[%clk 0:01:40]} 19. Nd3 {[%clk 0:01:14]}  Nc6 {[%clk 0:01:33]} 20. Ne2 {[%clk 0:00:47]}  Bf5 {[%clk 0:01:20]} 21. Ndf4 {[%clk 0:00:44]}  Rcd8 {[%clk 0:01:10]} 22. c3 {[%clk 0:00:44]}  Ne5 {[%clk 0:01:09]} 23. Nd4 {[%clk 0:00:40]}  Bh7 {[%clk 0:01:08]} 24. g4 {[%clk 0:00:29]}  Rc8 {[%clk 0:01:03]} 25. Nde2 {[%clk 0:00:21]}  Rcd8 {[%clk 0:01:02]} 26. Bg3 {[%clk 0:00:20]}  Qb6+ {[%clk 0:00:59]} 27. Kh1 {[%clk 0:00:20]}  Nc6 {[%clk 0:00:57]} 28. Nd4 {[%clk 0:00:20]}  Nxd4 {[%clk 0:00:56]} 29. Qxd4 {[%clk 0:00:20]}  Qxd4 {[%clk 0:00:54]} 30. cxd4 {[%clk 0:00:21]}  Rxe1+ {[%clk 0:00:51]} 31. Rxe1 {[%clk 0:00:22]}  Rc8 {[%clk 0:00:51]} 32. h4 {[%clk 0:00:18]}  Bb4 {[%clk 0:00:41]} 33. Re2 {[%clk 0:00:18]}  Bc3 {[%clk 0:00:28]} 34. Bf2 {[%clk 0:00:18]}  Bb1 {[%clk 0:00:20]} 35. g5 {[%clk 0:00:17]}  hxg5 {[%clk 0:00:20]} 36. hxg5 {[%clk 0:00:18]}  Nh7 {[%clk 0:00:20]} 37. Nxd5 {[%clk 0:00:17]}  Kh8 {[%clk 0:00:18]} 38. Nxc3 {[%clk 0:00:14]}  Rxc3 {[%clk 0:00:18]} 39. Re8+ {[%clk 0:00:15]}  Nf8 {[%clk 0:00:18]} 40. Rxf8+ {[%clk 0:00:16]}  Kh7 {[%clk 0:00:19]} 41. Rxf7 {[%clk 0:00:16]}  Bxa2 {[%clk 0:00:16]} 42. Bg3 {[%clk 0:00:15]}  Bxb3 {[%clk 0:00:16]} 43. Rxb7 {[%clk 0:00:15]}  Bd5 {[%clk 0:00:15]} 44. Rd7 {[%clk 0:00:15]}  Rc1+ {[%clk 0:00:14]} 45. Kh2 {[%clk 0:00:16]}  Bc6 {[%clk 0:00:15]} 46. Rc7 {[%clk 0:00:16]}  Rc2 {[%clk 0:00:14]} 47. Be5 {[%clk 0:00:15]}  Kg6 {[%clk 0:00:14]} 48. Rxg7+ {[%clk 0:00:15]}  Kf5 {[%clk 0:00:15]} 49. Kg3 {[%clk 0:00:15]}  Ke6 {[%clk 0:00:14]} 50. Bh3+ {[%clk 0:00:14]}  Kd5 {[%clk 0:00:15]} 51. Rf7 {[%clk 0:00:13]}  Rc1 {[%clk 0:00:14]} 52. g6 {[%clk 0:00:13]}  Rg1+ {[%clk 0:00:14]} 53. Bg2 {[%clk 0:00:12]}  Kc4 {[%clk 0:00:14]} 54. Kf2 {[%clk 0:00:11]}  Rb1 {[%clk 0:00:13]} 55. g7 {[%clk 0:00:11]}  Bd5 {[%clk 0:00:13]} 56. g8=Q {[%clk 0:00:10]}  Rb2+ {[%clk 0:00:14]} 57. Kg3 {[%clk 0:00:10]}  Kd3 {[%clk 0:00:14]} 58. Qg6+ {[%clk 0:00:10]}  Kc4 {[%clk 0:00:14]} 59. Rc7+ {[%clk 0:00:10]}  Kb4 {[%clk 0:00:14]} 60. Qb6+ {[%clk 0:00:10]}  Ka4 {[%clk 0:00:14]} 61. Qxa6+ {[%clk 0:00:10]}  Kb4 {[%clk 0:00:14]} 62. Qb6+ {[%clk 0:00:11]}  Ka3 {[%clk 0:00:14]} 63. Ra7# {[%clk 0:00:11]} 1-0


[Site "https://www.chess.com"]

[Event "Titled Tuesday Blitz August 15 Early 2023"]
[White "Mushini Ajay"]
[Black "Lana Rodriguez, David"]
[WhiteFideId "35066188"]
[BlackFideId "2270803"]
[WhiteElo "2407"]
[BlackElo "2586"]
[Result "0-1"]
[Round "3"]
[TimeControl "180+1"]
[Date "2023.08.15"]
[WhiteClock "0:00:14"]
[BlackClock "0:01:11"]
[Board "128"]

1. e4 {[%clk 0:03:00]}  b6 {[%clk 0:03:00]} 2. d4 {[%clk 0:03:00]}  Bb7 {[%clk 0:03:00]} 3. Bd3 {[%clk 0:03:01]}  e6 {[%clk 0:03:00]} 4. Nf3 {[%clk 0:03:01]}  Nf6 {[%clk 0:03:01]} 5. O-O {[%clk 0:03:01]}  Nxe4 {[%clk 0:03:00]} 6. Re1 {[%clk 0:03:01]}  Nf6 {[%clk 0:02:59]} 7. c4 {[%clk 0:02:59]}  Be7 {[%clk 0:03:00]} 8. Nc3 {[%clk 0:02:59]}  O-O {[%clk 0:03:00]} 9. Bg5 {[%clk 0:02:56]}  d5 {[%clk 0:03:00]} 10. cxd5 {[%clk 0:02:54]}  Nxd5 {[%clk 0:03:01]} 11. h4 {[%clk 0:02:50]}  h6 {[%clk 0:02:53]} 12. Bxe7 {[%clk 0:02:47]}  Qxe7 {[%clk 0:02:54]} 13. h5 {[%clk 0:02:40]}  Nd7 {[%clk 0:02:47]} 14. Ne5 {[%clk 0:02:31]}  Nxe5 {[%clk 0:02:42]} 15. Rxe5 {[%clk 0:02:28]}  Nxc3 {[%clk 0:02:42]} 16. bxc3 {[%clk 0:02:26]}  Rad8 {[%clk 0:02:42]} 17. Bc2 {[%clk 0:02:16]}  Rd5 {[%clk 0:02:37]} 18. Qd3 {[%clk 0:02:08]}  f5 {[%clk 0:02:37]} 19. Rae1 {[%clk 0:02:04]}  Rxe5 {[%clk 0:02:35]} 20. Rxe5 {[%clk 0:02:05]}  Qg5 {[%clk 0:02:35]} 21. f3 {[%clk 0:01:52]}  Rf6 {[%clk 0:02:27]} 22. Bb3 {[%clk 0:01:32]}  Bd5 {[%clk 0:02:12]} 23. Bxd5 {[%clk 0:00:54]}  exd5 {[%clk 0:02:13]} 24. Rxd5 {[%clk 0:00:51]}  Qxh5 {[%clk 0:02:13]} 25. g4 {[%clk 0:00:50]}  Qg5 {[%clk 0:02:03]} 26. Qc4 {[%clk 0:00:43]}  Kh7 {[%clk 0:02:00]} 27. Qd3 {[%clk 0:00:36]}  Qf4 {[%clk 0:01:52]} 28. Kg2 {[%clk 0:00:33]}  h5 {[%clk 0:01:46]} 29. Rxf5 {[%clk 0:00:26]}  Rxf5 {[%clk 0:01:46]} 30. gxf5 {[%clk 0:00:26]}  h4 {[%clk 0:01:34]} 31. f6+ {[%clk 0:00:20]}  Kh6 {[%clk 0:01:32]} 32. fxg7 {[%clk 0:00:19]}  Qg3+ {[%clk 0:01:32]} 33. Kh1 {[%clk 0:00:19]}  h3 {[%clk 0:01:28]} 34. Qd2+ {[%clk 0:00:19]}  Kxg7 {[%clk 0:01:26]} 35. Qe2 {[%clk 0:00:18]}  Kf6 {[%clk 0:01:24]} 36. d5 {[%clk 0:00:17]}  Kg5 {[%clk 0:01:21]} 37. c4 {[%clk 0:00:17]}  Kf4 {[%clk 0:01:17]} 38. Qe4+ {[%clk 0:00:17]}  Kg5 {[%clk 0:01:16]} 39. Qe3+ {[%clk 0:00:17]}  Kh5 {[%clk 0:01:14]} 40. Qe2 {[%clk 0:00:15]}  Qf4 {[%clk 0:01:12]} 41. Qe7 {[%clk 0:00:14]}  Qxf3+ {[%clk 0:01:11]} 42. Kh2 {[%clk 0:00:14]}  Qg2# {[%clk 0:01:11]} 0-1


[Site "https://www.chess.com"]

[Event "Titled Tuesday Blitz August 15 Early 2023"]
[White "Avazkhonov, Alikhon"]
[Black "Milosevic, Milos"]
[WhiteFideId "14208504"]
[BlackFideId "964875"]
[WhiteElo "2392"]
[BlackElo "2582"]
[Result "0-1"]
[Round "3"]
[TimeControl "180+1"]
[Date "2023.08.15"]
[WhiteClock "0:01:19"]
[BlackClock "0:02:25"]
[Board "130"]

1. d4 {[%clk 0:03:00]}  Nf6 {[%clk 0:02:58]} 2. c4 {[%clk 0:03:01]}  g6 {[%clk 0:02:58]} 3. Nc3 {[%clk 0:03:01]}  Bg7 {[%clk 0:02:59]} 4. e4 {[%clk 0:03:02]}  d6 {[%clk 0:03:00]} 5. Be2 {[%clk 0:03:02]}  O-O {[%clk 0:03:00]} 6. Be3 {[%clk 0:02:40]}  c5 {[%clk 0:02:56]} 7. d5 {[%clk 0:02:38]}  e6 {[%clk 0:02:56]} 8. dxe6 {[%clk 0:02:26]}  Bxe6 {[%clk 0:02:49]} 9. Nf3 {[%clk 0:02:26]}  Ng4 {[%clk 0:02:45]} 10. Bf4 {[%clk 0:02:24]}  Nc6 {[%clk 0:02:43]} 11. O-O {[%clk 0:02:20]}  Nge5 {[%clk 0:02:36]} 12. Nd5 {[%clk 0:02:06]}  Nxf3+ {[%clk 0:02:34]} 13. Bxf3 {[%clk 0:02:07]}  Nd4 {[%clk 0:02:30]} 14. Rb1 {[%clk 0:01:58]}  f5 {[%clk 0:02:27]} 15. Bg3 {[%clk 0:01:44]}  Bxd5 {[%clk 0:02:25]} 16. exd5 {[%clk 0:01:19]}  f4 {[%clk 0:02:25]} 0-1


[Site "https://www.chess.com"]

[Event "Titled Tuesday Blitz August 15 Early 2023"]
[White "Altman, Joshua"]
[Black "Kozelov, Roman"]
[WhiteFideId "426210"]
[BlackFideId "14133377"]
[WhiteElo "2582"]
[BlackElo "2383"]
[Result "1-0"]
[Round "3"]
[TimeControl "180+1"]
[Date "2023.08.15"]
[WhiteClock "0:00:04"]
[BlackClock "0:00:02"]
[Board "131"]

1. Nf3 {[%clk 0:03:00]}  Nf6 {[%clk 0:02:54]} 2. b3 {[%clk 0:02:59]}  b5 {[%clk 0:02:53]} 3. g3 {[%clk 0:02:58]}  Bb7 {[%clk 0:02:52]} 4. Bg2 {[%clk 0:02:59]}  c5 {[%clk 0:02:53]} 5. O-O {[%clk 0:02:59]}  e6 {[%clk 0:02:52]} 6. Bb2 {[%clk 0:02:58]}  Be7 {[%clk 0:02:53]} 7. a4 {[%clk 0:02:58]}  b4 {[%clk 0:02:52]} 8. d4 {[%clk 0:02:58]}  cxd4 {[%clk 0:02:47]} 9. Bxd4 {[%clk 0:02:55]}  O-O {[%clk 0:02:43]} 10. Nbd2 {[%clk 0:02:53]}  d5 {[%clk 0:02:42]} 11. Ne5 {[%clk 0:02:39]}  Nc6 {[%clk 0:02:41]} 12. Nxc6 {[%clk 0:02:39]}  Bxc6 {[%clk 0:02:41]} 13. Nc4 {[%clk 0:02:23]}  Nd7 {[%clk 0:02:23]} 14. Ne5 {[%clk 0:01:53]}  Nxe5 {[%clk 0:02:23]} 15. Bxe5 {[%clk 0:01:54]}  a5 {[%clk 0:02:15]} 16. e4 {[%clk 0:01:37]}  dxe4 {[%clk 0:02:12]} 17. Qg4 {[%clk 0:01:37]}  Bf6 {[%clk 0:02:11]} 18. Rad1 {[%clk 0:01:35]}  Bd5 {[%clk 0:02:04]} 19. Bxf6 {[%clk 0:01:21]}  Qxf6 {[%clk 0:02:03]} 20. Bxe4 {[%clk 0:01:22]}  Bxe4 {[%clk 0:01:58]} 21. Qxe4 {[%clk 0:01:22]}  Rac8 {[%clk 0:01:56]} 22. Rd7 {[%clk 0:01:17]}  Rc5 {[%clk 0:01:47]} 23. Rfd1 {[%clk 0:01:13]}  g6 {[%clk 0:01:46]} 24. R1d2 {[%clk 0:01:05]}  Rfc8 {[%clk 0:01:42]} 25. Kg2 {[%clk 0:01:04]}  Kg7 {[%clk 0:01:31]} 26. h4 {[%clk 0:00:58]}  h5 {[%clk 0:01:30]} 27. Ra7 {[%clk 0:00:55]}  R8c7 {[%clk 0:01:29]} 28. Ra8 {[%clk 0:00:38]}  Re5 {[%clk 0:01:20]} 29. Qd4 {[%clk 0:00:32]}  Rf5 {[%clk 0:01:15]} 30. Qb6 {[%clk 0:00:24]}  Qe5 {[%clk 0:01:11]} 31. Rdd8 {[%clk 0:00:17]}  Qe4+ {[%clk 0:00:53]} 32. Kh2 {[%clk 0:00:16]}  Qc6 {[%clk 0:00:33]} 33. Rg8+ {[%clk 0:00:10]}  Kf6 {[%clk 0:00:33]} 34. Qd4+ {[%clk 0:00:09]}  e5 {[%clk 0:00:32]} 35. Qd8+ {[%clk 0:00:09]}  Re7 {[%clk 0:00:30]} 36. Qd2 {[%clk 0:00:04]}  Rc7 {[%clk 0:00:23]} 37. Rad8 {[%clk 0:00:03]}  Ke7 {[%clk 0:00:02]} 38. Rge8+ {[%clk 0:00:04]}  Qxe8 {[%clk 0:00:02]} 39. Qd6# {[%clk 0:00:04]} 1-0


[Site "https://www.chess.com"]

[Event "Titled Tuesday Blitz August 15 Early 2023"]
[White "Musovic, Armin"]
[Black "Nosacheva, Mariya"]
[WhiteFideId "939935"]
[BlackFideId "34111422"]
[WhiteElo "2581"]
[BlackElo "2382"]
[Result "1-0"]
[Round "3"]
[TimeControl "180+1"]
[Date "2023.08.15"]
[WhiteClock "0:00:19"]
[BlackClock "0:00:09"]
[Board "132"]

1. a3 {[%clk 0:03:00]}  e5 {[%clk 0:02:56]} 2. d4 {[%clk 0:03:00]}  exd4 {[%clk 0:02:54]} 3. Qxd4 {[%clk 0:03:01]}  Nc6 {[%clk 0:02:54]} 4. Qa4 {[%clk 0:03:01]}  Nf6 {[%clk 0:02:51]} 5. Nf3 {[%clk 0:03:01]}  d5 {[%clk 0:02:51]} 6. Nc3 {[%clk 0:02:59]}  Bc5 {[%clk 0:02:48]} 7. Bg5 {[%clk 0:02:59]}  O-O {[%clk 0:02:12]} 8. O-O-O {[%clk 0:02:53]}  Be6 {[%clk 0:01:39]} 9. e4 {[%clk 0:02:33]}  d4 {[%clk 0:00:52]} 10. e5 {[%clk 0:02:21]}  Qc8 {[%clk 0:00:50]} 11. exf6 {[%clk 0:02:04]}  dxc3 {[%clk 0:00:49]} 12. Qh4 {[%clk 0:01:51]}  Bf5 {[%clk 0:00:42]} 13. b4 {[%clk 0:01:42]}  Qe6 {[%clk 0:00:38]} 14. Bc4 {[%clk 0:01:39]}  Qe8 {[%clk 0:00:26]} 15. fxg7 {[%clk 0:01:29]}  Nxb4 {[%clk 0:00:18]} 16. axb4 {[%clk 0:01:23]}  Qa4 {[%clk 0:00:16]} 17. gxf8=Q+ {[%clk 0:01:14]}  Bxf8 {[%clk 0:00:17]} 18. Bxf7+ {[%clk 0:00:44]}  Kg7 {[%clk 0:00:14]} 19. Qd4+ {[%clk 0:00:28]}  Kxf7 {[%clk 0:00:14]} 20. Ne5+ {[%clk 0:00:22]}  Ke8 {[%clk 0:00:10]} 21. Qd8+ {[%clk 0:00:18]}  Rxd8 {[%clk 0:00:09]} 22. Rxd8# {[%clk 0:00:19]} 1-0


[Site "https://www.chess.com"]